bitfinex-derivatives/quotes_SOLF0:USTF0_20241217
["timestamp","ask_amount","ask_price","bid_price","bid_amount"]
[1734447503832,18.78361748,222.54,222.38,5.44732783]
[1734447504132,18.78361748,222.5,222.35,6.1934]
[1734447504332,3.18,222.49,222.35,4.662]
[1734447504636,3.18,222.49,222.36,2.2482]
[1734447504825,3.92591462,222.48,222.36,2.2482]
[1734447505026,3.92591462,222.47,222.36,2.2482]
[1734447505227,3.92591462,222.47,222.34,3.18]
[1734447505430,3.92591462,222.46,222.34,3.18]
[1734447505630,3.92591462,222.45,222.34,3.18]
[1734447505831,2.2476,222.43,222.36,2.2482]
[1734447506031,3.92591462,222.42,222.34,3.18]
[1734447506237,3.102,222.46,222.35,0.8254998]
[1734447506539,6.16787723,222.45,222.34,3.18]
[1734447506732,3.92057723,222.44,222.34,3.18]
[1734447506940,3.92057723,222.43,222.39,2.2479]
[1734447507130,2.2473,222.45,222.39,2.2479]
[1734447507338,3.91896669,222.44,222.39,2.2479]
[1734447507532,2.2473,222.45,222.39,2.2479]
[1734447507739,3.91901103,222.44,222.39,2.2479]
[1734447508036,3.91862907,222.43,222.37,2.248]
[1734447508237,3.18,222.49,222.37,2.248]
[1734447508638,3.91673342,222.48,222.34,3.18]
[1734447508834,3.91673342,222.47,222.38,2.248]
[1734447509034,2.2475,222.44,222.38,2.248]
[1734447509231,3.91673342,222.43,222.38,2.248]
[1734447509739,18.78361748,222.47,222.34,3.18]
[1734447510042,3.91590948,222.46,222.34,3.18]
[1734447510237,9.3128322,222.45,222.34,3.18]
[1734447510437,18.78361748,222.43,222.31,1.482]
[1734447510636,3.91590948,222.42,222.32,0.82558238]
[1734447510934,3.91590948,222.42,222.31,1.482]
[1734447510935,18.78361748,222.39,222.21,51.38]
[1734447511135,10.63010727,222.38,222.25,3.18]
[1734447511335,16.12969169,222.37,222.26,0.82559292]
[1734447511536,12.87840727,222.36,222.3,2.2488]
[1734447511731,3.91590948,222.35,222.31,0.82559292]
[1734447511931,3.91590948,222.34,222.31,0.82559292]
[1734447512135,10.63010727,222.33,222.3,2.2488]
[1734447512333,10.63010727,222.32,222.31,0.82559187]
[1734447512537,3.91590948,222.32,222.31,0.82559187]
[1734447512839,2.2488,222.31,222.26,2.2492]
[1734447513039,10.63010727,222.3,222.27,0.82560824]
[1734447513241,10.63010727,222.29,222.28,0.82560824]
[1734447513442,10.63010727,222.29,222.25,0.82560824]
[1734447513744,10.94093562,222.28,222.26,0.82560824]
[1734447513939,10.94093562,222.27,222.24,2.2494]
[1734447514140,10.94093562,222.26,222.25,0.82561637]
[1734447514446,6.47603783,222.26,222.25,0.82561637]
[1734447514645,4.22673783,222.26,222.22,0.82561637]
[1734447514847,9.72632225,222.25,222.23,0.82561637]
[1734447515142,2.2493,222.26,222.24,0.82561637]
[1734447515447,10.99862565,222.25,222.18,3.18]
[1734447515647,10.99862565,222.24,222.2,2.2499]
[1734447515949,13.24959386,222.23,222.21,0.02716247]
[1734447516148,13.24959386,222.22,222.17,1.6133]
[1734447516345,13.24959386,222.21,222.18,2.25]
[1734447516649,13.24959386,222.2,222.18,2.25]
[1734447516844,13.24959386,222.19,222.17,1.6133]
[1734447517042,13.24959386,222.18,222.13,3.0954]
[1734447517247,5.48685311,222.15,222.14,0.82569929]
[1734447517443,13.24959386,222.15,222.14,3.07619929]
[1734447517846,2.2496,222.23,222.14,0.82569929]
[1734447518047,7.75118011,222.22,222.17,2.2501]
[1734447518247,14.67835164,222.21,222.18,0.82569929]
[1734447518547,21.25906858,222.2,222.19,0.82569929]
[1734447519048,21.25906858,222.2,222.19,0.82569783]
[1734447519240,2.2497,222.22,222.13,3.0954]
[1734447519241,2.2497,222.22,222.16,2.2502]
[1734447519445,2.2497,222.22,222.19,0.82569783]
[1734447519642,2.2497,222.22,222.17,0.82569783]
[1734447519943,2.2497,222.22,222.18,0.82569783]
[1734447520144,14.31422403,222.21,222.19,0.82569783]
[1734447520448,14.6546512,222.2,222.13,3.0954]
[1734447520646,5.47352482,222.18,222.14,0.82569765]
[1734447520848,16.46325795,222.17,222.16,2.2503]
[1734447521048,21.16910935,222.17,222.16,3.07599765]
[1734447521447,7.68340392,222.17,222.16,3.07599765]
[1734447521647,21.04963327,222.17,222.16,3.07599765]
[1734447522345,27.86222736,222.17,222.16,2.2503]
[1734447522545,27.86222736,222.17,222.16,3.07600362]
[1734447522747,23.15637596,222.17,222.16,3.07600362]
[1734447522949,9.79014661,222.17,222.16,0.82570362]
[1734447523250,9.79014661,222.17,222.16,2.2503]
[1734447523450,9.79014661,222.17,222.16,3.07600362]
[1734447524653,14.55188493,222.17,222.16,3.07600362]
[1734447524954,18.5656511,222.17,222.16,3.07600362]
[1734447525155,18.5656511,222.17,222.16,14.84569508]
[1734447525356,5.46809405,222.21,222.2,2.2499]
[1734447525556,5.46809405,222.21,222.2,3.07558269]
[1734447525757,4.37985341,222.25,222.2,0.82568282]
[1734447526051,10.80104773,222.24,222.21,0.82568282]
[1734447526350,11.70020015,222.3,222.18,0.82568282]
[1734447526351,18.19088713,222.23,222.18,0.82568282]
[1734447526550,18.19088713,222.23,222.1,11.76969281]
[1734447526751,6.42119432,222.22,222.1,11.76969281]
[1734447526960,11.76969281,222.23,222.1,11.76969281]
[1734447526961,5.46638909,222.18,222.1,11.76969281]
[1734447527156,11.88758341,222.17,222.11,5.38743687]
[1734447527455,10.80104773,222.16,222.11,5.38743687]
[1734447527655,10.80104773,222.15,222.11,5.38743687]
[1734447527859,6.42119432,222.14,222.11,5.38743687]
[1734447528058,4.37985341,222.15,222.09,3.18]
[1734447528059,6.42119432,222.13,222.12,2.2507]
[1734447528354,2.2503,222.16,222.09,3.18]
[1734447528555,11.07857384,222.15,222.09,3.18]
[1734447528755,6.70589247,222.14,222.09,3.18]
[1734447528965,6.70589247,222.13,222.1,11.76969281]
[1734447529158,6.70589247,222.12,222.1,11.76969281]
[1734447529359,4.37268137,222.18,222.1,11.76969281]
[1734447529561,4.37268137,222.17,222.13,11.76969281]
[1734447529759,4.37268137,222.19,222.13,11.76969281]
[1734447529955,4.37268137,222.19,222.12,18.82990782]
[1734447530262,4.37498255,222.2,222.12,18.82990782]
[1734447530456,4.37498255,222.21,222.12,18.82990782]
[1734447530657,4.37498255,222.21,222.19,2.2499]
[1734447530853,4.37498255,222.21,222.12,18.82990782]
[1734447531058,4.37498255,222.22,222.12,18.82990782]
[1734447531263,2.2495,222.24,222.21,2.2498]
[1734447532057,7.71959409,222.24,222.21,2.2498]
[1734447533060,4.37607527,222.25,222.15,3.12]
[1734447533362,4.37607527,222.26,222.2,18.82990782]
[1734447533659,4.37607527,222.29,222.24,18.82990782]
[1734447533861,4.37607527,222.31,222.25,3.12]
[1734447534065,4.37607527,222.33,222.31,2.2487]
[1734447534262,4.37607527,222.34,222.25,3.12]
[1734447534464,11.23837527,222.37,222.25,3.12]
[1734447534767,6.8623,222.37,222.32,2.2485]
[1734447534965,6.8623,222.37,222.25,3.12]
[1734447535366,4.70926872,222.36,222.28,2.249]
[1734447535566,4.70926872,222.35,222.25,3.12]
[1734447535864,4.70926872,222.34,222.29,18.82990782]
[1734447536067,4.38527476,222.39,222.34,2.2484]
[1734447536259,9.09874495,222.39,222.31,3.12]
[1734447536464,4.71347019,222.38,222.31,3.12]
[1734447536765,4.71347019,222.37,222.31,3.12]
[1734447536965,4.71347019,222.36,222.31,3.12]
[1734447537166,4.71347019,222.35,222.31,3.12]
[1734447537365,11.70725097,222.34,222.31,3.12]
[1734447537663,11.70725097,222.33,222.31,3.12]
[1734447537865,11.70725097,222.32,222.31,3.12]
[1734447538165,7.63022611,222.32,222.31,3.12]
[1734447538366,7.63022611,222.32,222.28,2.249]
[1734447538667,7.63022611,222.31,222.28,2.249]
[1734447538969,11.71055681,222.3,222.28,2.249]
[1734447539171,11.71055681,222.29,222.28,2.249]
[1734447539374,18.24753612,222.29,222.25,3.12]
[1734447539572,3.12,222.41,222.25,3.12]
[1734447539573,18.24753612,222.28,222.25,3.12]
[1734447539768,18.24753612,222.27,222.25,3.12]
[1734447539970,18.24753612,222.26,222.22,2.2497]
[1734447540166,18.24753612,222.25,222.22,2.2497]
[1734447540373,18.24753612,222.24,222.2,3.12]
[1734447540570,18.24753612,222.23,222.2,3.12]
[1734447540772,18.24753612,222.22,222.2,3.12]
[1734447540973,18.24753612,222.21,222.2,3.12]
[1734447541174,18.24753612,222.21,222.2,5.3698]
[1734447541476,13.53406593,222.21,222.2,5.3698]
[1734447541679,10.61536593,222.21,222.2,5.3698]
[1734447541976,4.07838662,222.21,222.2,10.1433435]
[1734447542170,4.38527476,222.3,222.2,14.09275293]
[1734447542371,6.55181263,222.29,222.22,6.22482703]
[1734447542570,6.55181263,222.28,222.23,4.7735435]
[1734447542774,2.2486,222.33,222.27,2.2492]
[1734447542971,11.07303339,222.32,222.23,6.22482703]
[1734447543178,11.07303339,222.31,222.3,2.2488]
[1734447543682,11.07303339,222.31,222.29,5.3689]
[1734447543982,11.0775623,222.3,222.29,3.12]
[1734447544176,17.57259584,222.3,222.29,3.12]
[1734447544382,11.02053865,222.3,222.29,5.3689]
[1734447544572,11.02053865,222.3,222.29,3.12]
[1734447545576,11.02053865,222.3,222.29,5.369]
[1734447546176,11.03194726,222.3,222.29,5.369]
[1734447546577,11.03194726,222.3,222.29,3.12]
[1734447546979,4.53699702,222.3,222.29,3.12]
[1734447547887,4.53699702,222.3,222.29,5.3689]
[1734447548077,11.04796258,222.3,222.29,5.3689]
[1734447550087,6.51096556,222.3,222.29,10.15157128]
[1734447550679,6.41521105,222.3,222.29,10.15157128]
[1734447551190,2.2481,222.38,222.34,2.2484]
[1734447551490,6.41337348,222.37,222.34,2.2484]
[1734447551789,6.41353102,222.36,222.32,2.2486]
[1734447551985,6.41353102,222.35,222.32,2.2486]
[1734447552289,6.41353102,222.34,222.29,3.12]
[1734447552589,6.41353102,222.33,222.29,3.12]
[1734447552790,6.41353102,222.32,222.29,3.12]
[1734447552991,6.41353102,222.31,222.29,3.12]
[1734447553180,2.9584,222.41,222.29,3.12]
[1734447553381,2.2481,222.38,222.29,3.12]
[1734447553691,6.78432206,222.37,222.29,3.12]
[1734447553989,6.78432206,222.36,222.29,3.12]
[1734447554181,6.78432206,222.35,222.29,3.12]
[1734447554385,13.20160083,222.34,222.29,3.12]
[1734447554581,13.20160083,222.33,222.29,3.12]
[1734447554782,2.9584,222.41,222.29,3.12]
[1734447554783,13.20160083,222.32,222.29,3.12]
[1734447554988,13.20160083,222.31,222.29,3.12]
[1734447555291,13.2014373,222.3,222.29,3.12]
[1734447555789,13.2014373,222.3,222.29,5.3689]
[1734447555984,13.2014373,222.3,222.29,3.12]
[1734447556187,13.2014373,222.3,222.24,3.12]
[1734447556381,13.2014373,222.29,222.22,3.12]
[1734447556582,18.82990782,222.34,222.22,3.12]
[1734447556583,13.2014373,222.28,222.22,3.12]
[1734447556782,13.2014373,222.28,222.24,2.2494]
[1734447556783,13.2014373,222.27,222.24,2.2494]
[1734447557084,13.2014373,222.26,222.24,2.2494]
[1734447557290,13.2014373,222.25,222.24,2.2494]
[1734447559594,4.01078371,222.25,222.24,2.2494]
[1734447559787,18.82990782,222.34,222.24,2.2494]
[1734447559992,6.41577293,222.25,222.24,2.2494]
[1734447560391,13.19845975,222.25,222.24,2.2494]
[1734447560787,15.60431606,222.25,222.24,2.2494]
[1734447560985,19.61407656,222.25,222.18,5.36761744]
[1734447561289,13.19661951,222.24,222.19,3.02]
[1734447561496,13.19661951,222.23,222.19,3.02]
[1734447561794,4.0097605,222.22,222.2,2.2499]
[1734447562097,4.0097605,222.21,222.2,2.2499]
[1734447563492,2.2495,222.24,222.2,2.2499]
[1734447563795,1.5467,222.31,222.2,2.2499]
[1734447563796,4.0107414,222.21,222.2,2.2499]
[1734447563993,8.02167166,222.21,222.18,3.02]
[1734447564192,4.01093026,222.2,222.17,2.2501]
[1734447564492,6.78418653,222.19,222.17,2.2501]
[1734447564698,4.01093026,222.18,222.17,2.2501]
[1734447566494,2.2499,222.2,222.17,2.2501]
[1734447566796,6.78219275,222.19,222.17,2.2501]
[1734447566992,4.009441,222.18,222.17,2.2501]
[1734447567897,4.009441,222.18,222.15,2.5197]
[1734447568092,4.009441,222.17,222.15,0.2694]
[1734447568399,4.0107414,222.21,222.16,2.2502]
[1734447568601,13.19716317,222.2,222.15,0.2694]
[1734447568796,13.19716317,222.19,222.15,0.2694]
[1734447568990,4.00940046,222.18,222.15,0.2694]
[1734447569193,4.0107414,222.21,222.15,0.2694]
[1734447569392,4.0099824,222.2,222.15,0.2694]
[1734447569599,4.0099824,222.19,222.15,0.2694]
[1734447569795,4.0107414,222.21,222.15,0.2694]
[1734447570001,4.0098742,222.18,222.15,0.2694]
[1734447570197,4.0098742,222.2,222.18,2.25]
[1734447570395,4.00946774,222.19,222.18,2.25]
[1734447570795,6.78268748,222.19,222.18,2.25]
[1734447570994,4.00946774,222.19,222.18,2.25]
[1734447571195,4.00946774,222.19,222.15,0.2694]
[1734447571500,4.0107414,222.21,222.15,0.2694]
[1734447571501,13.19693523,222.18,222.15,0.2694]
[1734447571700,4.00946774,222.17,222.15,0.2694]
[1734447571895,4.00946774,222.16,222.15,0.2694]
[1734447572090,4.00946774,222.16,222.15,2.5198]
[1734447572693,1.5409,222.2,222.17,2.2501]
[1734447572901,1.5409,222.2,222.15,0.2694]
[1734447573106,4.01006466,222.19,222.15,0.2694]
[1734447573298,4.01006466,222.18,222.15,0.2694]
[1734447573597,3.0188,222.22,222.15,0.2694]
[1734447573801,9.19053768,222.21,222.15,0.2694]
[1734447573998,2.7735548,222.2,222.15,0.2694]
[1734447574193,5.2685,222.22,222.19,2.25]
[1734447574395,13.20241949,222.21,222.19,2.25]
[1734447574601,13.20241949,222.2,222.19,2.25]
[1734447574800,4.01099704,222.2,222.19,2.25]
[1734447575304,4.01099704,222.21,222.19,2.25]
[1734447575498,4.01099704,222.2,222.19,2.25]
[1734447575697,4.01099704,222.21,222.19,2.25]
[1734447576297,3.0188,222.22,222.19,2.25]
[1734447576500,4.01359601,222.2,222.19,2.25]
[1734447576998,4.01359601,222.2,222.16,3.02]
[1734447577199,3.0947,222.27,222.16,3.02]
[1734447577502,2.2495,222.24,222.2,2.2498]
[1734447577695,13.21139999,222.23,222.16,3.02]
[1734447577894,6.78941055,222.22,222.16,14.79038206]
[1734447578097,4.01370935,222.21,222.2,2.2498]
[1734447578300,3.0947,222.27,222.19,11.77038206]
[1734447578496,13.21686821,222.26,222.19,11.77038206]
[1734447578704,6.79221934,222.25,222.19,11.77038206]
[1734447579003,4.01540554,222.24,222.19,11.77038206]
[1734447579312,1.5864,222.33,222.22,11.77038206]
[1734447579603,1.5864,222.33,222.23,3.02]
[1734447579805,6.79306262,222.32,222.23,3.02]
[1734447580006,9.20261308,222.31,222.28,2.249]
[1734447580208,2.7771452,222.3,222.28,2.249]
[1734447580399,13.2185305,222.29,222.28,2.249]
[1734447580800,13.2185305,222.29,222.21,3.02]
[1734447581003,11.77038206,222.32,222.21,3.02]
[1734447581004,13.2185305,222.28,222.21,3.02]
[1734447581305,13.2185305,222.27,222.21,3.02]
[1734447581606,13.2185305,222.26,222.21,3.02]
[1734447581797,13.2185305,222.25,222.21,3.02]
[1734447581996,13.2185305,222.24,222.21,3.02]
[1734447582201,4.01591742,222.23,222.21,3.02]
[1734447582406,4.01591742,222.22,222.21,3.02]
[1734447583512,4.01591742,222.22,222.21,5.2698]
[1734447586003,1.5897,222.28,222.21,3.02]
[1734447586204,2.77788211,222.27,222.25,2.2493]
[1734447586400,6.79488929,222.26,222.25,2.2493]
[1734447586607,13.22210077,222.26,222.25,2.2493]
[1734447586807,13.22210077,222.26,222.24,2.2494]
[1734447587107,13.22210077,222.25,222.24,2.2494]
[1734447588605,4.01700718,222.25,222.24,2.2494]
[1734447588908,4.01700718,222.25,222.24,5.2694]
[1734447589608,13.22094539,222.25,222.24,5.2694]
[1734447590111,4.01700718,222.25,222.24,5.2694]
[1734447590615,1.5923,222.35,222.24,3.02]
[1734447590812,4.01750639,222.25,222.24,3.02]
[1734447591010,4.01750639,222.32,222.24,14.04305062]
[1734447591204,2.77840197,222.31,222.25,4.79805748]
[1734447591407,2.77840197,222.3,222.24,27.84245534]
[1734447591608,10.44578028,222.29,222.25,4.7977396]
[1734447591911,4.01775699,222.29,222.28,2.249]
[1734447592107,4.01775699,222.29,222.26,17.99520909]
[1734447592415,4.01775699,222.28,222.26,11.77038206]
[1734447592613,2.2484,222.34,222.31,2.2487]
[1734447592908,13.22140204,222.33,222.26,11.77038206]
[1734447593104,13.22140204,222.32,222.3,2.2488]
[1734447593306,13.22137793,222.31,222.3,2.2488]
[1734447594210,13.22137793,222.31,222.3,5.2088]
[1734447594510,4.01684706,222.31,222.3,5.2088]
[1734447595204,4.01684706,222.39,222.3,2.96]
[1734447595407,2.2483,222.36,222.3,2.96]
[1734447595609,13.21777819,222.35,222.3,2.96]
[1734447595810,13.21777819,222.34,222.3,2.96]
[1734447596010,2.2483,222.36,222.33,2.2485]
[1734447596207,9.20116523,222.35,222.33,2.2485]
[1734447596414,2.77667187,222.34,222.33,2.2485]
[1734447596618,13.21647358,222.34,222.3,2.96]
[1734447596918,13.21647358,222.33,222.3,2.96]
[1734447597118,13.21647358,222.32,222.24,6.22482703]
[1734447597319,2.2491,222.28,222.25,5.2093]
[1734447597508,10.4393876,222.27,222.25,2.96]
[1734447597709,13.21539317,222.26,222.25,2.96]
[1734447598119,2.2494,222.25,222.19,6.22482703]
[1734447598416,13.21539317,222.24,222.2,2.96]
[1734447598616,13.21539317,222.23,222.19,2.96]
[1734447598813,13.21539317,222.22,222.19,2.96]
[1734447599117,3.1736,222.31,222.15,6.22482703]
[1734447599118,13.21539317,222.21,222.15,6.22482703]
[1734447599314,2.77624466,222.2,222.16,2.96]
[1734447599518,2.77688383,222.19,222.18,2.25]
[1734447599719,6.79249436,222.19,222.18,2.25]
[1734447600120,13.21690872,222.19,222.18,2.25]
[1734447600317,13.21690872,222.19,222.12,6.51959703]
[1734447600516,13.21690872,222.18,222.12,0.29477]
[1734447600717,13.21690872,222.17,222.12,0.29477]
[1734447601017,13.21690872,222.16,222.12,0.29477]
[1734447601213,13.21690872,222.15,222.12,0.29477]
[1734447601417,13.21690872,222.14,222.13,2.2506]
[1734447601618,4.01561053,222.14,222.13,2.2506]
[1734447602228,4.6154,222.21,222.12,0.29477]
[1734447602522,1.5585,222.21,222.13,11.77038206]
[1734447602721,11.77038206,222.29,222.17,2.2501]
[1734447602918,11.77038206,222.26,222.13,11.77038206]
[1734447603122,11.77038206,222.23,222.12,0.29477]
[1734447603824,2.25,222.19,222.13,2.2505]
[1734447604023,2.25,222.19,222.12,0.29477]
[1734447604223,2.77483574,222.18,222.12,0.29477]
[1734447604428,2.77483574,222.17,222.12,0.29477]
[1734447604625,2.77483574,222.16,222.12,0.29477]
[1734447604829,2.77483574,222.15,222.12,0.29477]
[1734447605126,6.26254636,222.18,222.13,2.2505]
[1734447605127,13.20719628,222.14,222.13,2.2505]
[1734447606021,4.01244636,222.14,222.13,2.2505]
[1734447606529,2.2497,222.22,222.16,2.2502]
[1734447606827,13.19754189,222.21,222.12,0.29477]
[1734447607122,13.19754189,222.2,222.12,0.29477]
[1734447607429,13.19754189,222.19,222.12,0.29477]
[1734447607621,2.2497,222.22,222.12,0.29477]
[1734447607622,13.19754189,222.18,222.12,0.29477]
[1734447607823,4.00950959,222.17,222.12,0.29477]
[1734447608024,4.00950959,222.16,222.12,0.29477]
[1734447608229,2.2497,222.22,222.12,0.29477]
[1734447608431,13.19627575,222.21,222.18,2.25]
[1734447608628,13.19627575,222.2,222.11,2.96]
[1734447608832,13.19627575,222.19,222.15,2.2503]
[1734447609022,11.77038206,222.24,222.15,2.2503]
[1734447609023,13.19627575,222.18,222.15,2.2503]
[1734447609222,13.19627575,222.17,222.1,17.28833871]
[1734447609526,4.00786914,222.16,222.11,2.96]
[1734447609728,2.77158944,222.15,222.11,2.96]
[1734447610033,4.00786914,222.14,222.11,2.96]
[1734447610221,4.00786914,222.14,222.06,17.99520909]
[1734447610423,13.18761916,222.13,222.07,2.96]
[1734447610623,13.18761916,222.12,222.07,2.96]
[1734447610828,4.00786914,222.11,222.07,2.96]
[1734447611032,4.00786914,222.1,222.09,11.77038206]
[1734447611229,3.1776,222.19,222.09,11.77038206]
[1734447611428,13.1843362,222.18,222.11,2.2507]
[1734447611632,13.1843362,222.17,222.09,11.77038206]
[1734447611830,10.41510772,222.16,222.09,11.77038206]
[1734447612025,3.1776,222.19,222.09,11.77038206]
[1734447612235,4.0065136,222.18,222.09,17.99520909]
[1734447612535,4.0065136,222.17,222.12,11.77038206]
[1734447612728,1.5375,222.2,222.13,2.96]
[1734447612931,9.17994253,222.19,222.12,2.96]
[1734447613137,13.18634754,222.19,222.12,2.96]
[1734447613338,1.5375,222.2,222.12,2.96]
[1734447613537,6.4087629,222.18,222.12,2.96]
[1734447613737,1.5375,222.2,222.12,2.96]
[1734447613738,13.18321916,222.17,222.12,2.96]
[1734447613935,4.00547681,222.16,222.12,2.96]
[1734447614236,1.5375,222.2,222.12,2.96]
[1734447614441,13.1829585,222.19,222.12,2.96]
[1734447614641,13.18296485,222.18,222.12,2.96]
[1734447614835,4.00540499,222.17,222.12,2.96]
[1734447615039,4.00540499,222.16,222.12,2.96]
[1734447615240,1.5375,222.2,222.12,2.96]
[1734447615439,13.18184592,222.19,222.12,2.96]
[1734447615736,13.18184592,222.18,222.12,2.96]
[1734447615939,1.5375,222.2,222.12,2.96]
[1734447615940,13.18184592,222.17,222.12,2.96]
[1734447616133,10.41316711,222.16,222.12,2.96]
[1734447616334,2.2505,222.14,222.12,2.96]
[1734447616534,6.40810284,222.13,222.12,2.96]
[1734447616841,2.76807414,222.13,222.12,2.96]
[1734447617139,13.18124125,222.13,222.04,0.35276]
[1734447617336,13.17914781,222.12,222.06,2.96]
[1734447617538,4.00506427,222.11,222.04,0.35276]
[1734447617847,4.00506427,222.1,222.05,8.25234369]
[1734447618046,4.00506427,222.09,222.05,8.25234369]
[1734447618336,1.5509,222.14,222.05,8.25234369]
[1734447618538,13.15732705,222.13,222.05,8.25234369]
[1734447618742,13.15732705,222.12,222.04,0.35276]
[1734447618943,13.15732705,222.11,222.04,0.35276]
[1734447619139,13.15732705,222.1,222.04,0.35276]
[1734447619341,3.99764683,222.09,222.04,0.35276]
[1734447619531,3.99764683,222.08,222.04,0.35276]
[1734447619735,10.38898812,222.08,222.04,0.35276]
[1734447619939,13.15002318,222.07,222.04,0.35276]
[1734447620146,3.99764683,222.06,222.04,0.35276]
[1734447620348,1.5509,222.14,222.04,0.35276]
[1734447620545,11.399259,222.13,222.06,2.2512]
[1734447620743,10.38125437,222.13,222.06,2.96]
[1734447620949,24.91176926,222.12,222.06,2.96]
[1734447621147,15.7631722,222.12,222.06,2.96]
[1734447621343,15.7631722,222.12,222.06,5.2112]
[1734447621344,6.24359014,222.11,222.06,5.2112]
[1734447621547,3.99279014,222.1,222.06,5.2112]
[1734447621749,3.99279014,222.09,222.06,5.2112]
[1734447622046,11.77038206,222.12,222.04,0.35276]
[1734447622246,13.13470222,222.11,222.04,0.35276]
[1734447622444,13.13470222,222.1,222.04,0.35276]
[1734447622643,11.77038206,222.12,222.04,0.35276]
[1734447622849,3.98874576,222.09,222.04,0.35276]
[1734447623045,3.98874576,222.11,222.04,0.35276]
[1734447623244,3.98874576,222.11,222.07,2.2511]
[1734447623245,6.74594781,222.1,222.07,2.2511]
[1734447623446,3.98874576,222.1,222.07,2.2511]
[1734447623644,10.37043918,222.1,222.07,2.2511]
[1734447623842,6.38169342,222.1,222.07,2.2511]
[1734447624044,11.77038206,222.09,222.04,0.35276]
[1734447624349,11.77038206,222.09,221.99,5.44229946]
[1734447624542,7.18172311,222.08,221.99,8.40229946]
[1734447624747,6.23792311,222.07,222.02,2.2517]
[1734447624944,3.98662311,222.06,222.02,2.2517]
[1734447625148,2.2512,222.07,222.01,2.2517]
[1734447625451,3.98460235,222.06,221.99,5.44229946]
[1734447625642,3.1951,222.08,221.99,5.44229946]
[1734447625843,11.77038206,222.06,221.99,5.44229946]
[1734447626044,3.98452372,222.05,222.01,2.2517]
[1734447626245,3.98452372,222.05,221.99,5.44229946]
[1734447626446,3.1951,222.08,221.99,5.44229946]
[1734447626642,3.98351061,222.07,221.99,5.44229946]
[1734447626852,3.1951,222.08,221.99,5.44229946]
[1734447627044,3.98337176,222.07,222.01,2.2517]
[1734447627251,5.4462,222.08,221.99,5.44229946]
[1734447627252,3.1951,222.08,221.99,5.44229946]
[1734447627449,3.98231127,222.07,221.99,5.44229946]
[1734447627653,15.75269333,222.06,221.96,2.96]
[1734447627952,3.98231127,222.05,221.95,2.96]
[1734447628153,11.77038206,222.06,221.95,2.96]
[1734447628453,3.98038255,222.05,221.93,11.77038206]
[1734447628748,3.98038255,222.04,221.94,2.96]
[1734447628944,2.2516,222.03,221.98,2.252]
[1734447629150,11.77038206,222.06,221.94,5.47513857]
[1734447629449,11.77038206,222.03,221.94,8.43513857]
[1734447629651,3.97844475,222.02,221.94,8.43513857]
[1734447629847,2.2518,222.01,221.96,2.2522]
[1734447630454,11.77038206,222.03,221.96,2.2522]
[1734447630654,3.97656137,222.02,221.96,2.2522]
[1734447630950,11.77038206,222.03,221.96,2.2522]
[1734447631152,3.9765736,222.02,221.96,2.2522]
[1734447631357,2.2519,222.01,221.96,2.2522]
[1734447633256,1.4855,222.05,221.94,5.47513857]
[1734447633257,11.77038206,222.0,221.94,5.47513857]
[1734447633655,14.02228206,222.0,221.94,2.2524]
[1734447633851,14.02228206,222.0,221.92,2.96]
[1734447634058,3.97023166,221.99,221.92,2.96]
[1734447634250,11.77038206,221.97,221.91,2.96]
[1734447634457,11.77038206,221.94,221.87,2.96]
[1734447634662,3.96799401,221.93,221.87,2.96]
[1734447635055,11.77038206,221.94,221.87,2.96]
[1734447635257,3.96631205,221.93,221.87,2.96]
[1734447635465,2.2528,221.92,221.85,2.2533]
[1734447635657,1.5098,221.96,221.85,2.96]
[1734447635853,10.31265433,221.95,221.85,2.96]
[1734447636058,2.2524,221.96,221.85,2.96]
[1734447636264,11.77038206,221.94,221.85,8.43066329]
[1734447636466,3.96660942,221.93,221.85,8.43066329]
[1734447636762,3.96512614,221.92,221.84,2.96]
[1734447636953,3.96502526,221.91,221.84,8.3343926]
[1734447637157,11.77038206,221.91,221.84,2.96]
[1734447637457,11.77038206,221.88,221.77,3.0804]
[1734447637661,3.96234024,221.87,221.81,5.50884253]